fUST/lending_fUST_20250530
["ID","MTS","AMOUNT","RATE_DAILY","PERIOD"]
[363157950,1748604636501,-7554.77,0.00019452,2]
[363157951,1748604636511,-731.76,0.00019452,2]
[363157952,1748604636523,-934.62,0.00019452,2]
[363157953,1748604636531,-1355.23,0.00019452,2]
[363157954,1748604636541,-778.1,0.00019452,2]
[363157955,1748604636551,-430.0,0.00019452,2]
[363157956,1748604636560,-430.0,0.00019452,2]
[363157957,1748604636570,-1111.64,0.00019452,2]
[363157958,1748604636580,-430.0,0.00019452,2]
[363157959,1748604636589,-531.56,0.00019452,2]
[363157960,1748604636600,-616.73,0.00019452,2]
[363157961,1748604636610,-430.0,0.00019452,2]
[363157962,1748604636619,-1151.0,0.00019452,2]
[363157963,1748604636629,-430.0,0.00019452,2]
[363157964,1748604636639,-1250.68,0.00019452,2]
[363157965,1748604636648,-430.0,0.00019452,2]
[363157966,1748604636658,-430.0,0.00019452,2]
[363157967,1748604636668,-566.66,0.00019452,2]
[363157968,1748604636678,-843.39,0.00019452,2]
[363157969,1748604636689,-430.0,0.00019452,2]
[363157970,1748604636698,-430.0,0.00019452,2]
[363157971,1748604636708,-430.0,0.00019452,2]
[363157972,1748604636717,-430.0,0.00019452,2]
[363157973,1748604636727,-1462.78,0.00019452,2]
[363157974,1748604636736,-2672.89,0.00019452,2]
[363157975,1748604636746,-430.0,0.00019452,2]
[363157976,1748604636756,-3793.64,0.00019452,2]
[363157977,1748604636765,-430.0,0.00019452,2]
[363157978,1748604636774,-1319.71,0.00019452,2]
[363157979,1748604636784,-538.06,0.00019452,2]
[363157980,1748604636793,-430.0,0.00019452,2]
[363157981,1748604636804,-550.03,0.00019452,2]
[363157982,1748604636815,-3320.72,0.00019452,2]
[363157983,1748604636826,-918.2,0.00019452,2]
[363157984,1748604636836,-5769.14,0.00019452,2]
[363157985,1748604636847,-430.0,0.00019452,2]
[363157986,1748604636858,-1184.95,0.00019452,2]
[363157987,1748604636870,-876.06,0.00019452,2]
[363157988,1748604636880,-382.11756725,0.00019452,2]
[363157989,1748604636889,-430.0,0.00019452,2]
[363157990,1748604636900,-1276.26,0.00019452,2]
[363157991,1748604636910,-430.0,0.00019452,2]
[363157992,1748604636919,-2052.82,0.00019452,2]
[363157993,1748604636929,-430.0,0.00019452,2]
[363157994,1748604636939,-587.68,0.00019452,2]
[363157995,1748604636948,-2933.56,0.00019452,2]
[363157996,1748604636958,-646.22,0.00019452,2]
[363157997,1748604636968,-430.0,0.00019452,2]
[363157998,1748604636978,-430.0,0.00019452,2]
[363157999,1748604636987,-659.26895463,0.00019452,2]
[363158000,1748604637005,-723.66104537,0.00019452,2]
[363158001,1748604637016,-879.67,0.00019452,2]
[363158002,1748604637026,-552.64,0.00019452,2]
[363158003,1748604637036,-539.98,0.00019452,2]
[363158004,1748604637045,-430.0,0.00019452,2]
[363158005,1748604637055,-2629.42,0.00019452,2]
[363158006,1748604637064,-430.0,0.00019452,2]
[363158007,1748604637073,-430.0,0.00019452,2]
[363158008,1748604637083,-430.0,0.00019452,2]
[363158009,1748604637093,-481.5,0.00019452,2]
[363158010,1748604637103,-3022.28384318,0.00019452,2]
[363158011,1748604637129,-889.66615682,0.00019452,2]
[363158012,1748604637139,-430.0,0.00019452,2]
[363158013,1748604637151,-430.0,0.00019452,2]
[363158014,1748604637161,-1040.99,0.00019452,2]
[363158015,1748604637171,-793.59,0.00019452,2]
[363158016,1748604637180,-464.1,0.00019452,2]
[363158017,1748604637190,-430.0,0.00019452,2]
[363158018,1748604637202,-521.65384318,0.00019452,2]
[363158019,1748604637214,-1167.92615682,0.00019452,2]
[363158020,1748604637225,-2636.5,0.00019452,2]
[363158021,1748604637234,-430.0,0.00019452,2]
[363158022,1748604637244,-5712.63,0.00019452,2]
[363158023,1748604637254,-430.0,0.00019452,2]
[363158024,1748604637263,-430.0,0.00019452,2]
[363158025,1748604637273,-430.0,0.00019452,2]
[363158026,1748604637282,-918.03,0.00019452,2]
[363158027,1748604637292,-551.78,0.00019452,2]
[363158028,1748604637301,-657.85,0.00019452,2]
[363158029,1748604637311,-430.0,0.00019452,2]
[363158030,1748604637321,-181.08010149,0.00019453,2]
[363158031,1748604637330,-873.28826572,0.000195,2]
[363158067,1748604638931,-430.0,0.00019452,2]
[363158070,1748604638942,-502.88173428,0.000195,2]
[363158072,1748604638953,-427.81030587,0.000195,2]
[363158551,1748604643880,-1097.2,0.00019178,2]
[363158553,1748604643890,-178.59968766,0.00019178,2]
[363158555,1748604643899,-875.29,0.00019178,2]
[363158557,1748604643910,-2740.25,0.00019178,2]
[363158559,1748604643919,-1097.2,0.00019452,2]
[363158561,1748604643929,-875.29,0.00019452,2]
[363158563,1748604643939,-2740.25,0.00019452,2]
[363158565,1748604643949,-1073.61018413,0.000195,2]
[363158567,1748604643959,-187.78006525,0.00019508,2]
[363158569,1748604643968,-194.72792766,0.00019563,2]
[363158571,1748604643978,-500.0,0.0001958,2]
[363158573,1748604643987,-1000.0,0.00019583,2]
[363158576,1748604643997,-250.0,0.00019616,2]
[363158579,1748604644006,-201.93286099,0.00019618,2]
[363158582,1748604644016,-209.40437684,0.00019673,2]
[363158585,1748604644026,-180.0,0.00019724,2]
[363158588,1748604644036,-500.0,0.00019725,2]
[363158591,1748604644045,-500.0,0.00019725,2]
[363158595,1748604644055,-500.0,0.00019725,2]
[363158598,1748604644065,-500.0,0.00019725,2]
[363158600,1748604644075,-202.06154011,0.00019725,2]
[363158602,1748604644084,-500.0,0.00019725,2]
[363158604,1748604644094,-500.0,0.00019725,2]
[363158606,1748604644103,-500.0,0.00019725,2]
[363158608,1748604644113,-500.0,0.00019725,2]
[363158610,1748604644123,-500.0,0.00019725,2]
[363158612,1748604644133,-500.0,0.00019725,2]
[363158614,1748604644142,-500.0,0.00019725,2]
[363158616,1748604644152,-500.0,0.00019725,2]
[363158618,1748604644161,-500.0,0.00019725,2]
[363158620,1748604644171,-500.0,0.00019725,2]
[363158622,1748604644180,-500.0,0.00019725,2]
[363158624,1748604644190,-560.40269585,0.00019725,2]
[363158625,1748604644199,-500.0,0.00019725,2]
[363158628,1748604644209,-34.86845656,0.00019725,2]
[363158630,1748604644221,-465.13154344,0.00019725,2]
[363158632,1748604644231,-500.0,0.00019725,2]
[363158634,1748604644240,-500.0,0.00019725,2]
[363158636,1748604644250,-500.0,0.00019725,2]
[363158638,1748604644260,-153.17753372,0.00019725,2]
[363158640,1748604644269,-500.0,0.00019725,2]
[363158642,1748604644279,-500.0,0.00019725,2]
[363158644,1748604644289,-500.0,0.00019725,2]
[363158646,1748604644298,-500.0,0.00019725,2]
[363158648,1748604644307,-500.0,0.00019725,2]
[363158650,1748604644315,-500.0,0.00019725,2]
[363158651,1748604644325,-607.2242736,0.00019725,2]
[363158653,1748604644335,-500.0,0.00019725,2]
[363158655,1748604644344,-500.0,0.00019725,2]
[363158657,1748604644355,-201.149093,0.00019726,2]
[363158659,1748604644365,-151.0,0.00019726,2]
[363158662,1748604644375,-151.0,0.00019726,2]
[363158664,1748604644384,-430.0,0.00019726,2]
[363158666,1748604644394,-358.64970959,0.00019726,2]
[363158668,1748604644403,-430.0,0.00019726,2]
[363158670,1748604644413,-430.0,0.00019726,2]
[363158672,1748604644422,-430.0,0.00019726,2]
[363158674,1748604644432,-430.0,0.00019726,2]
[363158676,1748604644441,-532.68,0.00019726,2]
[363158678,1748604644450,-430.0,0.00019726,2]
[363158680,1748604644459,-430.0,0.00019726,2]
[363158682,1748604644468,-430.0,0.00019726,2]
[363158684,1748604644478,-430.0,0.00019726,2]
[363158686,1748604644487,-430.0,0.00019726,2]
[363158688,1748604644496,-470.0,0.00019726,2]
[363158690,1748604644505,-430.0,0.00019726,2]
[363158692,1748604644515,-430.0,0.00019726,2]
[363158694,1748604644524,-430.0,0.00019726,2]
[363158696,1748604644534,-430.0,0.00019726,2]
[363158698,1748604644543,-430.0,0.00019726,2]
[363158700,1748604644553,-434.94,0.00019726,2]
[363158702,1748604644562,-430.0,0.00019726,2]
[363158704,1748604644571,-431.51226882,0.00019726,2]
[363158706,1748604644581,-430.0,0.00019726,2]
[363158708,1748604644590,-430.0,0.00019726,2]
[363158710,1748604644601,-430.0,0.00019726,2]
[363158712,1748604644610,-430.0,0.00019726,2]
[363158714,1748604644619,-430.0,0.00019726,2]
[363158715,1748604644629,-430.0,0.00019726,2]
[363158717,1748604644638,-430.0,0.00019726,2]
[363158720,1748604644648,-430.0,0.00019726,2]
[363158722,1748604644658,-430.0,0.00019726,2]
[363158724,1748604644667,-430.0,0.00019726,2]
[363158726,1748604644676,-430.0,0.00019726,2]
[363158728,1748604644689,-430.0,0.00019726,2]
[363158730,1748604644699,-500.0,0.00019726,2]
[363158732,1748604644709,-430.0,0.00019726,2]
[363158734,1748604644718,-1090.95,0.00019726,2]
[363158736,1748604644727,-430.0,0.00019726,2]
[363158738,1748604644735,-430.0,0.00019726,2]
[363158740,1748604644745,-430.0,0.00019726,2]
[363158742,1748604644754,-944.27,0.00019726,2]
[363158744,1748604644763,-430.0,0.00019726,2]
[363158746,1748604644771,-430.0,0.00019726,2]
[363158748,1748604644781,-451.8,0.00019726,2]
[363158750,1748604644790,-430.0,0.00019726,2]
[363158752,1748604644798,-879.33,0.00019726,2]
[363158754,1748604644807,-572.69911654,0.00019726,2]
[363158756,1748604644816,-430.0,0.00019726,2]
[363158758,1748604644825,-292.2737234,0.00019726,2]
[363158760,1748604644834,-430.0,0.00019726,2]
[363158762,1748604644843,-430.0,0.00019726,2]
[363158764,1748604644853,-430.0,0.00019726,2]
[363158766,1748604644864,-534.41,0.00019726,2]
[363158768,1748604644874,-430.0,0.00019726,2]
[363158770,1748604644883,-430.0,0.00019726,2]
[363158772,1748604644892,-426.66932225,0.00019726,2]
[363158774,1748604644902,-430.0,0.00019726,2]
[363158776,1748604644913,-430.0,0.00019726,2]
[363158778,1748604644922,-430.0,0.00019726,2]
[363158780,1748604644931,-430.0,0.00019726,2]
[363158782,1748604644941,-430.0,0.00019726,2]
[363158784,1748604644950,-430.0,0.00019726,2]
[363158786,1748604644960,-85.33537481,0.00019726,2]
[363158796,1748604645051,-344.66462519,0.00019726,2]
[363158798,1748604645060,-33.93123166,0.00019726,2]
[363158996,1748604646925,-623.112765,0.00019178,2]
[363164391,1748604718509,1146.91721919,0.00024658,120]
[363164394,1748605138066,2228.46669292,0.00024657,120]
[363164395,1748605426338,548.770665,0.00013699,2]
[363164397,1748605467673,5094.229335,0.000161,2]
[363164398,1748605545091,-280.2958448,0.000161,2]
[363164399,1748605628087,-245.36477765,0.00015939,2]
[363164400,1748605643084,-3161.36814093,0.00015939,2]
[363164403,1748605745200,-1593.26708142,0.00015939,2]
[363164404,1748605745221,-1141.4748202,0.000161,2]
[363164405,1748605745244,-250.0,0.00016575,2]
[363164406,1748605745265,-1200.0,0.00016974,2]
[363164407,1748605745288,-300.0,0.00016974,2]
[363164408,1748605745309,-509.70192284,0.00016975,2]
[363164409,1748605745331,-859.69358569,0.00016975,2]
[363164410,1748605745352,-298.6558789,0.00017097,2]
[363164411,1748605745372,-181.8290686,0.00017677,2]
[363164412,1748605745567,-300.0,0.00017829,2]
[363164413,1748605745589,-254.85096142,0.00017831,2]
[363164414,1748605745611,-300.0,0.00017898,2]
[363164415,1748605745639,-4614.49795316,0.000179,2]
[363164416,1748605745659,-15064.80838136,0.00018,2]
[363164417,1748605745685,-4614.49795315,0.00018141,2]
[363164418,1748605745707,-400.35599326,0.00018177,2]
[363164419,1748605757096,-637.19522688,0.00017995,2]
[363164420,1748605772075,-95.56135823,0.00017995,2]
[363164431,1748605831863,-1066.07,0.00018142,2]
[363164432,1748605831873,-121.6010035,0.00018382,2]
[363164433,1748605831920,-178.3989965,0.00018382,2]
[363164434,1748605831930,-300.0,0.00018382,2]
[363164435,1748605831940,-480.0,0.00018382,2]
[363164436,1748605831950,-347.24547,0.00018383,2]
[363164437,1748605831963,-4267.25248315,0.00018383,2]
[363164438,1748605831972,-279.204432,0.00018383,2]
[363164439,1748605831982,-16884.47302403,0.00018383,2]
[363164440,1748605831994,-999.9,0.00018383,2]
[363164441,1748605832006,-859.95,0.00018383,2]
[363164535,1748605837703,-2329.82989894,0.00018383,2]
[363164760,1748605840238,-3825.84707703,0.00018383,2]
[363164762,1748605840249,-73.42852372,0.00018624,2]
[363164764,1748605840263,-549.27981121,0.00018624,2]
[363165137,1748605844339,-3991.78961822,0.00018624,2]
[363165140,1748605844352,-4280.00400057,0.00018866,2]
[363165142,1748605844367,-334.49395258,0.00018866,2]
[363165144,1748605844379,-275.80583416,0.000189,2]
[363165147,1748605844391,-2132.13,0.00019006,2]
[363165151,1748605844404,-152.0,0.00019038,2]
[363165154,1748605844416,-2818.1,0.00019042,2]
[363165157,1748605844428,-2818.1,0.00019042,2]
[363165159,1748605844440,-2818.1,0.00019042,2]
[363165161,1748605844452,-1726.32704101,0.00019042,2]
[363165166,1748605844467,-1091.77295899,0.00019042,2]
[363165169,1748605844480,-4614.49795315,0.00019107,2]
[363165172,1748605844491,-156.381,0.00019177,2]
[363165174,1748605844502,-255.31915082,0.00019177,2]
[363165176,1748605844513,-430.0,0.00019178,2]
[363165179,1748605844524,-430.0,0.00019178,2]
[363165181,1748605844534,-456.65616903,0.00019178,2]
[363165182,1748605844545,-310.0,0.00019178,2]
[363165185,1748605844555,-430.0,0.00019178,2]
[363165187,1748605844565,-430.0,0.00019178,2]
[363165189,1748605844575,-518.60808731,0.00019178,2]
[363165191,1748605844586,-430.0,0.00019178,2]
[363165193,1748605844596,-430.0,0.00019178,2]
[363165195,1748605844606,-430.0,0.00019178,2]
[363165213,1748605844615,-463.06820166,0.00019178,2]
[363165214,1748605844852,-294.91013577,0.00019178,2]
[363165215,1748605844862,-430.0,0.00019178,2]
[363165216,1748605844871,-430.0,0.00019178,2]
[363165217,1748605844881,-430.0,0.00019178,2]
[363165218,1748605844891,-430.0,0.00019178,2]
[363165219,1748605844902,-430.0,0.00019178,2]
[363165220,1748605844912,-430.0,0.00019178,2]
[363165221,1748605844921,-430.0,0.00019178,2]
[363165222,1748605844931,-486.01,0.00019178,2]
[363165223,1748605844940,-430.0,0.00019178,2]
[363165225,1748605844951,-430.0,0.00019178,2]
[363165226,1748605844960,-430.0,0.00019178,2]
[363165228,1748605844969,-430.0,0.00019178,2]
[363165230,1748605844979,-500.0,0.00019178,2]
[363165232,1748605844988,-954.58,0.00019178,2]
[363165234,1748605844998,-430.0,0.00019178,2]
[363165236,1748605845008,-826.24,0.00019178,2]
[363165238,1748605845018,-430.0,0.00019178,2]
[363165240,1748605845027,-430.0,0.00019178,2]
[363165242,1748605845037,-430.0,0.00019178,2]
[363165244,1748605845046,-769.42,0.00019178,2]
[363165246,1748605845056,-430.0,0.00019178,2]
[363165248,1748605845065,-430.0,0.00019178,2]
[363165250,1748605845075,-430.0,0.00019178,2]
[363165252,1748605845084,-430.0,0.00019178,2]
[363165254,1748605845093,-467.61,0.00019178,2]
[363165256,1748605845103,-430.0,0.00019178,2]
[363165258,1748605845112,-430.0,0.00019178,2]
[363165260,1748605845121,-430.0,0.00019178,2]
[363165262,1748605845131,-430.0,0.00019178,2]
[363165264,1748605845140,-1436.65,0.00019178,2]
[363165266,1748605845151,-430.0,0.00019178,2]
[363165268,1748605845160,-430.0,0.00019178,2]
[363165270,1748605845170,-430.0,0.00019178,2]
[363165272,1748605845179,-430.0,0.00019178,2]
[363165274,1748605845188,-430.0,0.00019178,2]
[363165276,1748605845198,-430.0,0.00019178,2]
[363165278,1748605845207,-430.0,0.00019178,2]
[363165280,1748605845217,-430.0,0.00019178,2]
[363165282,1748605845226,-430.0,0.00019178,2]
[363165284,1748605845236,-430.0,0.00019178,2]
[363165286,1748605845245,-430.0,0.00019178,2]
[363165288,1748605845255,-430.0,0.00019178,2]
[363165290,1748605845264,-1708.19,0.00019178,2]
[363165292,1748605845278,-430.0,0.00019178,2]
[363165294,1748605845288,-430.0,0.00019178,2]
[363165296,1748605845298,-1166.07,0.00019178,2]
[363165298,1748605845307,-430.0,0.00019178,2]
[363165300,1748605845319,-466.09,0.00019178,2]
[363165302,1748605845328,-670.78,0.00019178,2]
[363165304,1748605845338,-430.0,0.00019178,2]
[363165306,1748605845347,-430.0,0.00019178,2]
[363165308,1748605845358,-393.1413686,0.00019178,2]
[363165390,1748605846135,-36.8586314,0.00019178,2]
[363165392,1748605846146,-367.1413686,0.00019178,2]
[363167247,1748605870979,5000.00000001,0.00024658,120]
[363167253,1748606220280,6657.35,0.000155,2]
[363167254,1748606332780,500.0,0.00024658,120]
[363167255,1748606349878,500.0,0.00024658,120]
[363167256,1748606530208,196.0,0.000155,2]
[363167257,1748606531083,193.5442518,0.000155,2]
[363167258,1748606531109,2.4557482,0.000155,2]
[363167259,1748606612781,196.0,0.000155,2]
[363167260,1748606628036,193.6,0.000155,2]
[363167268,1748606735130,-677.15544969,0.0001722,2]
[363167269,1748606735347,530.235658,0.00013699,2]
[363167271,1748606790081,-160.14837759,0.0001722,2]
[363167272,1748606826149,-328.18378935,0.00017048,2]
[363167273,1748606846093,-505.90342985,0.00017048,2]
[363167274,1748606945093,-3251.04178413,0.00017048,2]
[363167275,1748606947116,-77.56716939,0.00017048,2]
[363167276,1748606947139,-268.08411133,0.0001757,2]
[363167277,1748606947160,-75.74871928,0.0001757,2]
[363167278,1748606949201,-85.10174752,0.0001757,2]
[363167279,1748606949233,-1200.0,0.00018111,2]
[363167280,1748606949264,-300.0,0.00018112,2]
[363167281,1748606949293,-300.0,0.00018112,2]
[363167282,1748606949320,-300.0,0.00018112,2]
[363167283,1748606949353,-300.0,0.00018113,2]
[363167284,1748606949383,-11455.7885797,0.00018114,2]
[363167285,1748606956095,-515.0978,0.00017933,2]
[363167286,1748606959363,-97.51451718,0.00017933,2]
[363167306,1748607032139,-52.7811399,0.00018114,2]
[363167307,1748607032152,-231.971563,0.00018148,2]
[363167308,1748607032162,-1039.74,0.00018748,2]
[363167309,1748607032172,-183.87055611,0.000189,2]
[363167310,1748607032183,-9158.17568008,0.000191,3]
[363167311,1748607032200,-841.82431992,0.000191,3]
[363167312,1748607032211,-3811.96442139,0.000191,3]
[363167313,1748607032223,-3564.03990453,0.000191,3]
[363167554,1748607040736,-5287.10682927,0.000191,3]
[363167556,1748607040746,-212.7380601,0.000191,3]
[363167558,1748607040756,-842.5625,0.000191,3]
[363167560,1748607040766,-3000.0,0.000191,2]
[363167562,1748607040776,-196.0,0.000191,3]
[363167564,1748607040786,-196.0,0.000191,3]
[363167566,1748607040796,-196.0,0.000191,3]
[363167568,1748607040806,-3000.0,0.0001911,2]
[363167570,1748607040817,-3000.0,0.0001912,2]
[363167572,1748607040827,-3000.0,0.0001913,2]
[363167574,1748607040837,-3000.0,0.0001914,2]
[363167576,1748607040846,-3000.0,0.0001915,2]
[363167578,1748607040856,-3000.0,0.0001916,2]
[363167580,1748607040865,-152.0,0.00019165,2]
[363167582,1748607040875,-3000.0,0.0001917,2]
[363167584,1748607040885,-2358.99135444,0.00019173,2]
[363167586,1748607040894,-500.0,0.00019176,2]
[363167588,1748607040909,-233.94907006,0.00019176,2]
[363167590,1748607040918,-208.56958467,0.00019176,2]
[363167592,1748607040928,-500.0,0.00019177,2]
[363167594,1748607040937,-491.44307808,0.00019177,2]
[363167596,1748607040947,-500.0,0.00019177,2]
[363167598,1748607040957,-500.0,0.00019177,2]
[363167600,1748607040967,-500.0,0.00019177,2]
[363167602,1748607040976,-500.0,0.00019177,2]
[363167605,1748607040986,-500.0,0.00019177,2]
[363167607,1748607040995,-500.0,0.00019177,2]
[363167609,1748607041005,-500.0,0.00019177,2]
[363167611,1748607041014,-475.05699152,0.00019177,2]
[363167613,1748607041023,-500.0,0.00019177,2]
[363167614,1748607041033,-500.0,0.00019177,2]
[363167617,1748607041043,-500.0,0.00019177,2]
[363167619,1748607041052,-500.0,0.00019177,2]
[363167621,1748607041061,-500.0,0.00019177,2]
[363167623,1748607041071,-500.0,0.00019177,2]
[363167625,1748607041080,-500.0,0.00019177,2]
[363167627,1748607041090,-500.0,0.00019177,2]
[363167629,1748607041101,-500.0,0.00019177,2]
[363167631,1748607041110,-500.0,0.00019177,2]
[363167633,1748607041120,-400.0,0.00019177,2]
[363167634,1748607041129,-9168.99620859,0.00019178,3]
[363167637,1748607041138,-55766.53952631,0.00019178,2]
[363167639,1748607041148,-430.0,0.00019178,2]
[363167641,1748607041161,-430.0,0.00019178,2]
[363167643,1748607041171,-430.0,0.00019178,2]
[363167645,1748607041180,-465.76,0.00019178,2]
[363167647,1748607041189,-430.0,0.00019178,2]
[363167649,1748607041198,-430.0,0.00019178,2]
[363167651,1748607041208,-430.0,0.00019178,2]
[363167652,1748607041218,-430.0,0.00019178,2]
[363167654,1748607041227,-430.0,0.00019178,2]
[363167656,1748607041236,-430.0,0.00019178,2]
[363167658,1748607041246,-430.0,0.00019178,2]
[363167660,1748607041255,-430.0,0.00019178,2]
[363167662,1748607041265,-430.0,0.00019178,2]
[363167664,1748607041275,-430.0,0.00019178,2]
[363167666,1748607041285,-446.67,0.00019178,2]
[363167669,1748607041295,-430.0,0.00019178,2]
[363167671,1748607041305,-430.0,0.00019178,2]
[363167673,1748607041316,-430.0,0.00019178,2]
[363167675,1748607041325,-430.0,0.00019178,2]
[363167677,1748607041335,-430.0,0.00019178,2]
[363167679,1748607041344,-430.0,0.00019178,2]
[363167681,1748607041354,-430.0,0.00019178,2]
[363167683,1748607041364,-430.0,0.00019178,2]
[363167685,1748607041374,-430.0,0.00019178,2]
[363167686,1748607041383,-430.0,0.00019178,2]
[363167688,1748607041393,-430.0,0.00019178,2]
[363167690,1748607041403,-430.0,0.00019178,2]
[363167692,1748607041416,-430.0,0.00019178,2]
[363167695,1748607041426,-430.0,0.00019178,2]
[363167696,1748607041435,-277.29118866,0.00019178,2]
[363167699,1748607041445,-430.0,0.00019178,2]
[363167700,1748607041455,-430.0,0.00019178,2]
[363167702,1748607041464,-430.0,0.00019178,2]
[363167704,1748607041474,-500.0,0.00019178,2]
[363167706,1748607041484,-430.0,0.00019178,2]
[363167708,1748607041493,-914.81,0.00019178,2]
[363167710,1748607041503,-430.0,0.00019178,2]
[363167713,1748607041513,-430.0,0.00019178,2]
[363167714,1748607041522,-430.0,0.00019178,2]
[363167717,1748607041532,-791.81,0.00019178,2]
[363167719,1748607041542,-430.0,0.00019178,2]
[363167720,1748607041551,-430.0,0.00019178,2]
[363167723,1748607041561,-430.0,0.00019178,2]
[363167725,1748607041571,-737.36,0.00019178,2]
[363167727,1748607041580,-430.0,0.00019178,2]
[363167728,1748607041590,-430.0,0.00019178,2]
[363167731,1748607041599,-430.0,0.00019178,2]
[363167733,1748607041609,-448.13,0.00019178,2]
[363167734,1748607041619,-430.0,0.00019178,2]
[363167736,1748607041628,-386.44811244,0.00019178,2]
[363167739,1748607041638,-430.0,0.00019178,2]
[363167741,1748607041654,-430.0,0.00019178,2]
[363167743,1748607041668,-430.0,0.00019178,2]
[363167745,1748607041677,-430.0,0.00019178,2]
[363167747,1748607041688,-430.0,0.00019178,2]
[363167749,1748607041699,-1376.79,0.00019178,2]
[363167751,1748607041709,-430.0,0.00019178,2]
[363167752,1748607041719,-430.0,0.00019178,2]
[363167755,1748607041731,-500.0,0.00019178,2]
[363167757,1748607041742,-292.28188709,0.00019178,2]
[363167759,1748607041752,-500.0,0.00019178,2]
[363167761,1748607041763,-500.0,0.00019178,2]
[363167763,1748607041773,-516.63655515,0.00019178,2]
[363167765,1748607041784,-430.0,0.00019178,2]
[363167766,1748607041793,-430.0,0.00019178,2]
[363167768,1748607041804,-430.0,0.00019178,2]
[363167771,1748607041815,-430.0,0.00019178,2]
[363167772,1748607041827,-430.0,0.00019178,2]
[363167774,1748607041837,-1637.02,0.00019178,2]
[363167776,1748607041846,-1117.48,0.00019178,2]
[363167778,1748607041856,-430.0,0.00019178,2]
[363167780,1748607041866,-151.0,0.00019178,2]
[363167782,1748607041875,-430.0,0.00019178,2]
[363167784,1748607041885,-430.0,0.00019178,2]
[363167786,1748607041895,-430.0,0.00019178,2]
[363167789,1748607041908,-603.03,0.00019178,2]
[363167791,1748607041921,-430.0,0.00019178,2]
[363167793,1748607041930,-642.83,0.00019178,2]
[363167795,1748607041940,-841.52,0.00019178,2]
[363167797,1748607041950,-505.79,0.00019178,2]
[363167799,1748607041959,-430.0,0.00019178,2]
[363167801,1748607041969,-430.0,0.00019178,2]
[363167803,1748607041979,-1005.77,0.00019178,2]
[363167804,1748607041988,-430.0,0.00019178,2]
[363167806,1748607041998,-635.95,0.00019178,2]
[363167824,1748607042163,-565.15,0.00019178,2]
[363167826,1748607042174,-180.34656641,0.00019178,2]
[363167828,1748607042184,-430.0,0.00019178,2]
[363167830,1748607042194,-430.0,0.00019178,2]
[363167832,1748607042203,-430.0,0.00019178,2]
[363167834,1748607042213,-2763.35,0.00019178,2]
[363167836,1748607042222,-482.73,0.00019178,2]
[363167838,1748607042231,-7769.81,0.00019178,2]
[363167840,1748607042240,-430.0,0.00019178,2]
[363167842,1748607042250,-1959.9,0.00019178,2]
[363167844,1748607042260,-802.35,0.00019178,2]
[363167846,1748607042269,-430.0,0.00019178,2]
[363167848,1748607042279,-430.0,0.00019178,2]
[363167850,1748607042288,-4985.03,0.00019178,2]
[363167851,1748607042298,-430.0,0.00019178,2]
[363167853,1748607042308,-513.00828249,0.00019178,2]